Cogmind - Beta 10.2 @@@ ROGUE MODE // 2020.11.02 @ 10:37:01 Player: Impermanent Result: Destroyed by D-53 Grenadier with Mini Grenade Launcher Performance ------------- Evolutions (0) 0 Regions Visited (2) 400 Robots Destroyed (13) 65 Value Destroyed (329) 329 Prototype IDs (2) 40 Alien Tech Used (0) 0 Bonus (0) 0 TOTAL SCORE: 834 Bonus ------- None Cogmind --------- Core Integrity 0/250 Matter 220/300 Energy 106/125 System Corruption 0% Temperature Cool (0) Movement Walking (150) Ox1 Location -10/Mines Parts ------- > --- POWER (1) -------- Light Ion Engine > --- PROPULSION (2) --- Aluminum Leg > --- UTILITY (2) ------ Large Storage Unit > --- WEAPON (2) ------- Mini Grenade Launcher > --- INVENTORY (10) --- Small Storage Unit Structural Scanner Medium Laser Small Laser Mini Grenade Launcher Peak State ------------ > --- POWER ------------ Ion Engine > --- PROPULSION ------- Aluminum Leg Aluminum Leg > --- UTILITY ---------- Large Storage Unit High-powered Tractor Beam > --- WEAPON ----------- Mini Grenade Launcher Mini Grenade Launcher > --- INVENTORY -------- Light Ion Engine Aluminum Leg Small Storage Unit Structural Scanner Medium Laser Medium Laser Medium Laser Small Laser Mini Grenade Launcher Mini Grenade Launcher [Rating: 11] Favorites ----------- Power Ion Engine Engine Ion Engine Propulsion Aluminum Leg Leg Aluminum Leg Utility Large Storage Unit Device High-powered Tractor Beam Storage Large Storage Unit Weapon Mini Grenade Launcher Energy Gun Medium Laser Launcher Mini Grenade Launcher Build | -11 -10 -10 ------- Run | Scr Mat Min Slots Evolved . | . . . Power . | . . . Propulsion . | . . . Utility . | . . . Weapon . | . . . Parts Attached 16 | 5 8 3 Power 2 | 1 . 1 Engine 2 | 1 . 1 Core . | . . . Reactor . | . . . Propulsion 4 | 2 1 1 Treads . | . . . Leg 4 | 2 1 1 Wheel . | . . . Hover . | . . . Flight . | . . . Utility 5 | 1 4 . Device 2 | . 2 . Storage 3 | 1 2 . Processor . | . . . Hackware . | . . . Protection . | . . . Artifact . | . . . Weapon 5 | 1 3 1 Energy Gun 2 | 1 1 . Energy Cannon . | . . . Ballistic Gun . | . . . Ballistic Cannon . | . . . Launcher 3 | . 2 1 Special Weapon . | . . . Impact Weapon . | . . . Slashing Weapon . | . . . Piercing Weapon . | . . . Special Melee Weapon . | . . . Unidentified Prototypes . | . . . Parts Lost 6 | . . 6 Power 1 | . . 1 Propulsion 2 | . . 2 Utility 1 | . . 1 Weapon 2 | . . 2 Highest Loss Streak 6 | . . 6 Average Slot Usage (%) 94 | . 94 93 Engine 13 | . 14 13 Leg 27 | . 28 25 Device 8 | . 6 12 Storage 17 | . 18 14 Energy Gun 5 | . 6 . Launcher 20 | . 18 27 Naked Turns . | . . . Heaviest Build 29 | 11 29 24 Greatest Support 20 | 20 20 20 Greatest Overweight (x) 3 | 3 3 2 Average Overweight (x) 1 | 1 . 1 Largest Inventory Capacity 12 | 6 12 10 Average Capacity 9 | 5 9 10 Most Carried 10 | 3 10 8 Average Carried 6 | 1 6 7 Final Capacity 10 | 6 10 10 Final Carried 8 | 3 8 5 Class Distribution -------------------- 100% | Mutant Dominant Class ---------------- Mutant | -10/Materials Mutant | -10/Mines Resources | -11 -10 -10 ----------- Run | Scr Mat Min Matter Collected 400 | 233 127 40 Remotely 50 | . 10 40 Salvage Created 412 | . 271 141 Parts 21 | . 14 7 Haulers Intercepted 1 | . 1 . Recyclers Shooed . | . . . Parts Field Recycled . | . . . Retrieved Matter . | . . . Parts Self-Destructed . | . . . Prevented . | . . . Kills | -11 -10 -10 ------- Run | Scr Mat Min Combat Hostiles Destroyed 7 | . 6 1 AOE 7 | . 6 1 Classes Destroyed 6 | . 4 2 Worker 1 | . 1 . Builder 1 | . . 1 Hauler 1 | . 1 . Recycler 3 | . 1 2 Grunt 6 | . 6 . Demolisher 1 | . . 1 Best Kill Streak 8 | . 8 4 Combat Bots Only 6 | . 6 1 Max Kills in Single Turn 3 | . 3 2 Gunslinging . | . . . Exploded 3 | . 3 1 Melee . | . . . Uniques/NPCs Destroyed . | . . . Combat | -11 -10 -10 -------- Run | Scr Mat Min Damage Taken 805 | . 186 619 Core 267 | . 50 217 Absorbed by Shields . | . . . Core Remaining (%) 100 | 100 . . Volleys Fired 21 | 4 10 7 Largest 2 | 1 2 2 Hottest 100 | 50 100 60 Shots Fired 34 | 4 20 10 Gun 19 | 4 15 . Cannon . | . . . Launcher 15 | . 5 10 Special . | . . . Kinetic . | . . . Thermal 19 | 4 15 . Explosive 15 | . 5 10 Electromagnetic . | . . . Robot Hit Streak 9 | 2 6 9 Robot Miss Streak 3 | 1 3 2 Penetration Max . | . . . Secondary Targets . | . . . Shots Hit Robots 21 | 3 12 6 Core Hits 34 | 1 16 17 Critical Hits . | . . . Critical Kills . | . . . Critical Parts Destroyed . | . . . Melee Attacks . | . . . Impact . | . . . Slashing . | . . . Piercing . | . . . Sneak Attacks . | . . . Combat Hostiles . | . . . Follow-up Attacks . | . . . Damage Inflicted 993 | 37 627 329 Guns 112 | 37 75 . Cannons . | . . . Explosions 881 | . 552 329 Melee . | . . . Ramming . | . . . Kinetic . | . . . Thermal 112 | 37 75 . Explosive 881 | . 552 329 Electromagnetic . | . . . Impact . | . . . Slashing . | . . . Piercing . | . . . Highest Corruption . | . . . Average Corruption . | . . . Corruption Purged . | . . . Overload Shots . | . . . Overflow Damage 20 | . 2 18 Projectiles . | . . . Explosions 20 | . 2 18 Melee . | . . . Knockbacks . | . . . Impact . | . . . Kinetic . | . . . Secondary . | . . . Self-Inflicted Damage 29 | . 29 . Shots 2 | . 2 . Rammed . | . . . Targets Rammed . | . . . Kicked . | . . . Crushed . | . . . Highest Temperature 141 | 40 141 . Average Temperature 55 | 22 61 . Received Heat Transfer 90 | . 90 . Siege Activations . | . . . Robots Corrupted . | . . . Combat Hostiles . | . . . Parts Fried . | . . . Impact Corruptions . | . . . Robots Melted . | . . . Combat Hostiles . | . . . Parts Melted 1 | . 1 . Heat Transferred 333 | 111 222 . Parts Sabotaged . | . . . Parts Stolen . | . . . Parts Stripped . | . . . Power Chain Reactions . | . . . Missiles Intercepted . | . . . Alert | -11 -10 -10 ------- Run | Scr Mat Min Peak Influence 206 | . 206 25 Initial . | . . . Average 39 | . 59 1 Maximum Alert Level 1 | . 1 . Low Security (%) 87 | 100 80 100 Level 1 12 | . 19 . Level 2 . | . . . Level 3 . | . . . Level 4 . | . . . Level 5 . | . . . High Security . | . . . Max Security . | . . . Squads Dispatched . | . . . Investigation . | . . . Extermination . | . . . Reinforcement . | . . . Assault . | . . . Garrison . | . . . Intercept . | . . . Construction Impeded . | . . . Haulers Reinforced . | . . . Stealth | -11 -10 -10 --------- Run | Scr Mat Min Distress Signals . | . . . Communications Jammed . | . . . Distress Signals . | . . . Times Spotted 10 | . 8 2 Peak Tracking Total 5 | . 5 2 Tactical Retreats . | . . . Traps | -11 -10 -10 ------- Run | Scr Mat Min Traps Triggered . | . . . Indirectly . | . . . Trap Hack Attempts . | . . . Triggered . | . . . Disarmed . | . . . Reprogrammed . | . . . Reused . | . . . Traps Extracted . | . . . Installed . | . . . Triggered . | . . . Machines | -11 -10 -10 ---------- Run | Scr Mat Min Machines Disabled 2 | . 2 . Max in Single Turn 1 | . 1 . Machines Sabotaged . | . . . Garrisons Compromised . | . . . Overloaded Fab Kills . | . . . Fab Network Shutdowns . | . . . Hacking | -11 -10 -10 --------- Run | Scr Mat Min Machines Accessed 6 | . 6 . Terminals 5 | . 5 . Fabricators . | . . . Repair Stations . | . . . Recycling Units 1 | . 1 . Scanalyzers . | . . . Garrison Access . | . . . Total Hacks 18 | . 18 . Successful 13 | . 13 . Failed 5 | . 5 . Catastrophic 1 | . 1 . Database Lockouts . | . . . Manual . | . . . Terminals 14 | . 14 . Fabricators . | . . . Repair Stations . | . . . Recycling Units 4 | . 4 . Scanalyzers . | . . . Garrison Access . | . . . Terminal Hacks 9 | . 9 . Record 5 | . 5 . Robot Analysis 1 | . 1 . Prototype ID Bank 1 | . 1 . Unreport Threat 1 | . 1 . Locate Traps 1 | . 1 . Fabricator Hacks . | . . . Repair Station Hacks . | . . . Recycling Unit Hacks 4 | . 4 . Recycle Component 2 | . 2 . Process 1 | . 1 . Retrieve Matter 1 | . 1 . Scanalyzer . | . . . Garrison Access Hacks . | . . . Unauthorized Hacks . | . . . Terminals . | . . . Fabricators . | . . . Repair Stations . | . . . Recycling Units . | . . . Scanalyzers . | . . . Garrison Access . | . . . Data Cores Recovered . | . . . Used . | . . . Hacking Detections 5 | . 5 . Full Trace Events 2 | . 2 . Feedback Events . | . . . Feedback Blocked . | . . . Robot Schematics Acquired . | . . . Robots Built . | . . . Matter . | . . . Time . | . . . Total Robot Build Rating . | . . . Part Schematics Acquired . | . . . Parts Built . | . . . Matter . | . . . Time . | . . . Total Part Build Rating . | . . . Parts Repaired . | . . . Time . | . . . Parts Recycled 2 | . 2 . Recycled Matter 166 | . 166 . Retrieved Matter 166 | . 166 . Retrieved Components . | . . . Parts Scanalyzed . | . . . Part Schematics Acquired . | . . . Parts Damaged . | . . . Bothacking | -11 -10 -10 ------------ Run | Scr Mat Min Used RIF Installer . | . . . Robots Hacked . | . . . Non-combat . | . . . Combat . | . . . Robot Hacks Applied . | . . . Relay Couplers Released . | . . . Robots Rewired . | . . . Allies Hacked . | . . . Hacks Repelled . | . . . Allies | -11 -10 -10 -------- Run | Scr Mat Min Total Allies 2 | . . 2 Largest Group 2 | . . 2 Highest-Rated Group 45 | . . 45 Highest-Rated Ally 31 | . . 31 Total Orders . | . . . Ally Attacks 2 | . . 2 Total Damage 22 | . . 22 Kills . | . . . Allies Corrupted . | . . . Allies Melted . | . . . Intel | -11 -10 -10 ------- Run | Scr Mat Min Robot Analysis Total 1 | . 1 . Derelict Logs Recovered . | . . . Drone Launches . | . . . Drone Recoveries . | . . . Exploration | -11 -10 -10 ------------- Run | Scr Mat Min Turns Passed 773 | 115 508 150 Spaces Moved 461 | 65 310 86 Core 58 | 44 14 . Treads . | . . . Legs 403 | 21 296 86 Wheels . | . . . Hover . | . . . Flight . | . . . Fastest Speed 50 | 50 120 150 Average Speed 149 | 151 148 150 Slowest Speed 200 | 200 200 180 Overloaded Moves . | . . . Propulsion Burnouts . | . . . Robots Hopped . | . . . Cave-ins Triggered . | . . . Exploration Rate (%) 26 | 4 49 26 Regions Visited 2 Branch Regions 1 Pre-discovered Areas . | . . . Known Exits Taken . | . . . Unknown Exits Taken 2 | 1 1 . Scrap Searched 1 | . . 1 Spaces Dug . | . . . Terrain Destroyed 69 | . 19 50 Melee . | . . . Projectile . | . . . AOE 69 | . 19 50 Terrain Rammed . | . . . Walls Destroyed . | . . . Machines Disabled . | . . . Actions | -11 -10 -10 --------- Run | Scr Mat Min Total 510 | 76 338 96 Wait 1 | . 1 . Move 459 | 64 309 86 Hop . | . . . Pick Up 7 | 3 4 . Fast Attach 12 | 5 7 . Attach 3 | . . 3 Detach 4 | . 4 . Swap 1 | . 1 . Drop 2 | . 2 . Fire 21 | 4 10 7 Melee . | . . . Ram . | . . . Kick . | . . . Crush . | . . . Escape Stasis . | . . . Rewire . | . . . Trap . | . . . Miscellaneous . | . . . Route ------- -11/Scrapyard -10/Materials -10/Mines History --------- Turn | Location | Event 2 | -11/Scrapyard | Met Revision 17 16 | -11/Scrapyard | Discovered new exit (range 14) 116 | -11/Scrapyard | Entered Materials 310 | -10/Materials | Build established: Mutant 539 | -10/Materials | Discovered new exit (range 5) 624 | -10/Materials | Entered Mines 732 | -10/Mines | Assembled infested the area 737 | -10/Mines | Assisted by a Guerilla fighting off Assembled 755 | -10/Mines | Core integrity fell below 50% 767 | -10/Mines | Core integrity fell below 20% 774 | -10/Mines | Destroyed by D-53 Grenadier with Mini Grenade Launcher Last Messages --------------- 00758_ U-05 Engineer lays Concrete. 00762_ The unstable cave ceiling collapses. 00762_ U-05 Engineer lays Concrete. 00763_ The unstable cave ceiling collapses. 00763_ U-05 Engineer lays Concrete. 00764_ The unstable cave ceiling collapses. 00764_ U-05 Engineer lays Concrete. 00765_ The unstable cave ceiling collapses. 00765_ U-05 Engineer lays Concrete. 00766_ The unstable cave ceiling collapses. 00766_ U-05 Engineer lays Concrete. 00767_ The unstable cave ceiling collapses. 00767_ U-05 Engineer lays Concrete. 00768_ The unstable cave ceiling collapses. 00769_ U-05 Engineer lays Concrete. 00770_ Mni. Grenade Launcher destroyed. 00771_ U-05 Engineer lays Concrete. 00772_ Destroyed Shock Absorption System. 00773_ The unstable cave ceiling collapses. 00773_ U-05 Engineer lays Concrete. Map ----- +----------------------------------------------------+ | ?????????????????????????????????????????????? | | ?????????????????????????????????????????????? | | ?????????????????????????????????????????????? | | ?????????????????????????????????????????????? | | ?????????????????????????????????????????????? | | ?????????????????????????????????????????????? | | ?????????????????????????????????????????????? | | ?????????????????????????????????????????????? | | ?????????????????????????????????????????????? | | ?????????????????????????????????????????????? | | ?????????????????????????????????????????????? | | ?????????????????????????????????????????????? | | ?????????????????????????????????????????????? | | ?????????????????????????????????????????????? | | ?????????????????????????????????????????????? | | ?????????????????????????????????????????????? | | ?????????????????????????????????????????????? | | ?????????????????????????????????????????????? | | ?????????????????????????????????????????????? | | ?????????????????########????????????????????? | | ?????????????????# ^ #######??????????????? | | ?????????????????# # ^ ## ##?????????????? | | ????????????????## * #?????????????? | | ????????????????# #?????????????? | | ??????????#?????# ##?????????????? | | ??????????# ##### @ #??????????????? | | ?????????## #??????????????? | | ?????????# # #?????????????? | | ????????# ??????????? | | ????????# u # #????????? | | ????????## ## #????????? | | ?????????# #?## ] d #???????? | | ?????????# #???## ????????? | | ?????????##??????## # #????????? | | ??????????????????## ### % ##???????? | | ???????????????????####??# #???????? | | ??????????????????????????# #???????? | | ??????????????????????????# # ##???????? | | ??????????????????????????# ## ## #?????? | | ?????????????????????????## #?????? | | ?????????????????????????# """ #?????? | | ??????????????????????#### """ ######?????? | | ??????????????????????# """ #??????????? | | ?????????????????###### #??????????? | | ?????????????????# #### #?????????? | | ?????????????????# #####??# #?????????? | | ?????????????????# #??????# #?????????? | | ?????????????????# #?????? ##?????????? | | ????????########## #?????? ####??????????? | | ????????# #??????#####?????????????? | +----------------------------------------------------+ Best States ------------- Heat Dissipation 25 Energy Generation 10 Energy Capacity 250 Matter Stores 300 Matter Capacity 300 Sight Range 16 Terrain Scan Density 10 Evasion (%) 40 Item Schematics ----------------- None Robot Schematics ------------------ None Fabricated ------------ Nothing Alien Tech Used ----------------- None Achievements -------------- Everything Is Under Control Loot Pinata Challenges ------------ None Game ------ Seed CombatTransportSplitter Manual? 0 Play Time 00:19:32 Cumulative 4.8 hours Start 2020.11.02 @ 01:14:32 End 2020.11.02 @ 10:37:01 Sessions 3 Manual Loads 0 Difficulty Rogue Special Mode None Game No. 9 Rogue 9 Adventurer 0 Explorer 0 Win Type - Total 0 Types 0/0/0/0/0/0/0/0/0 Lore% 1 Gallery% 13 Achievement% 8 Wizard Run 0 Options --------- ASCII 0 Keyboard 1 Movement Vi Keybinds 0 Fullscreen 1 Font 24/Smallcaps Map View 76x50 Tactical HUD 1 Map Filters NONE Filters NONE Steam 1 RUN: 90a35cf1-19b1-4670-89f2-06a3e35781a0